[Event "*** Titled Tuesday Blitz"]
[Site "Chess.com"]
[Date "2020.03.03"]
[Round "5"]
[White "pouya21"]
[Black "MartinMatthiesen"]
[Result "1-0"]
[WhiteElo "2798"]
[BlackElo "2597"]
[TimeControl "180+1"]
[EndTime "13:51:35 PST"]
[Termination "pouya21 won by resignation"]

1. e4 {[%clk 0:03:00.4]} 1... c5 {[%clk 0:02:58.5]} 2. Nf3 {[%clk 0:03:00.5]}
2... d6 {[%clk 0:02:58.3]} 3. d4 {[%clk 0:02:55.8]} 3... cxd4 {[%clk 0:02:58.4]}
4. Nxd4 {[%clk 0:02:56.7]} 4... Nf6 {[%clk 0:02:58.5]} 5. Nc3 {[%clk 0:02:57.2]}
5... a6 {[%clk 0:02:58.8]} 6. Be3 {[%clk 0:02:56.6]} 6... e5 {[%clk 0:02:56.5]}
7. Nf3 {[%clk 0:02:57]} 7... Qc7 {[%clk 0:02:50.4]} 8. a4 {[%clk 0:02:55.6]}
8... Be7 {[%clk 0:02:49.5]} 9. a5 {[%clk 0:02:45.1]} 9... Nbd7 {[%clk
0:02:42.9]} 10. Be2 {[%clk 0:02:43.4]} 10... O-O {[%clk 0:02:41.9]} 11. O-O
{[%clk 0:02:43]} 11... b5 {[%clk 0:02:31.6]} 12. axb6 {[%clk 0:02:41.4]} 12...
Nxb6 {[%clk 0:02:31.6]} 13. Nd2 {[%clk 0:02:41.5]} 13... Bb7 {[%clk 0:02:18.3]}
14. Bxb6 {[%clk 0:02:28.2]} 14... Qxb6 {[%clk 0:02:17.4]} 15. Nc4 {[%clk
0:02:28.5]} 15... Qc7 {[%clk 0:02:16.7]} 16. Ne3 {[%clk 0:02:24.7]} 16... Nxe4
{[%clk 0:01:52.7]} 17. Ned5 {[%clk 0:02:21.6]} 17... Bxd5 {[%clk 0:01:46.6]} 18.
Nxd5 {[%clk 0:02:20.9]} 18... Qb7 {[%clk 0:01:27.2]} 19. Bf3 {[%clk 0:02:09.7]}
19... f5 {[%clk 0:01:25.4]} 20. Ra4 {[%clk 0:02:03.7]} 20... Bd8 {[%clk
0:01:17.1]} 21. Rb4 {[%clk 0:01:38.8]} 21... Qa7 {[%clk 0:01:10.9]} 22. Bxe4
{[%clk 0:01:34.4]} 22... fxe4 {[%clk 0:01:10.5]} 23. Qe2 {[%clk 0:01:34.4]}
23... Rb8 {[%clk 0:01:02.6]} 24. Qxe4 {[%clk 0:01:23.3]} 24... Rxb4 {[%clk
0:01:01.8]} 25. Qxb4 {[%clk 0:01:22.3]} 25... Qd7 {[%clk 0:00:55.8]} 26. Qc4
{[%clk 0:01:18.8]} 26... Qf7 {[%clk 0:00:50.6]} 27. Qe4 {[%clk 0:01:13.1]} 27...
a5 {[%clk 0:00:49.6]} 28. b3 {[%clk 0:01:09.7]} 28... Kh8 {[%clk 0:00:46]} 29.
g3 {[%clk 0:01:06.9]} 29... Qa7 {[%clk 0:00:44.9]} 30. Kg2 {[%clk 0:01:06.1]}
30... Bb6 {[%clk 0:00:44.7]} 31. f4 {[%clk 0:01:06]} 31... Qa6 {[%clk 0:00:32]}
32. Nxb6 {[%clk 0:00:50.6]} 32... Qxb6 {[%clk 0:00:31.8]} 33. fxe5 {[%clk
0:00:51.1]} 33... Re8 {[%clk 0:00:28.9]} 34. exd6 {[%clk 0:00:44.7]} 1-0

[Event "*** Titled Tuesday Blitz"]
[Site "Chess.com"]
[Date "2020.03.03"]
[Round "5"]
[White "cottage_cheese"]
[Black "Rodalquilar"]
[Result "0-1"]
[WhiteElo "2341"]
[BlackElo "2593"]
[TimeControl "180+1"]
[EndTime "13:51:36 PST"]
[Termination "Rodalquilar won on time"]

1. e4 {[%clk 0:03:00.9]} 1... Nf6 {[%clk 0:02:58.8]} 2. e5 {[%clk 0:03:00.2]}
2... Nd5 {[%clk 0:02:59.3]} 3. d4 {[%clk 0:03:00.2]} 3... d6 {[%clk 0:02:59.7]}
4. Nf3 {[%clk 0:03:00.6]} 4... dxe5 {[%clk 0:02:59.9]} 5. Nxe5 {[%clk
0:02:58.6]} 5... c6 {[%clk 0:02:59.7]} 6. Be2 {[%clk 0:02:56]} 6... Bf5 {[%clk
0:02:59.9]} 7. c3 {[%clk 0:02:43.2]} 7... Nd7 {[%clk 0:03:00.1]} 8. O-O {[%clk
0:02:42.8]} 8... Nxe5 {[%clk 0:02:59.7]} 9. dxe5 {[%clk 0:02:43.4]} 9... e6
{[%clk 0:03:00.3]} 10. Nd2 {[%clk 0:02:40.4]} 10... Be7 {[%clk 0:03:00.1]} 11.
Nf3 {[%clk 0:02:35.8]} 11... O-O {[%clk 0:03:00.2]} 12. a3 {[%clk 0:02:21.7]}
12... Qc7 {[%clk 0:02:58.6]} 13. c4 {[%clk 0:02:16.5]} 13... Nb6 {[%clk
0:02:58.8]} 14. Bf4 {[%clk 0:01:40.7]} 14... Nd7 {[%clk 0:02:57.7]} 15. Qc1
{[%clk 0:01:34.4]} 15... Nc5 {[%clk 0:02:56.9]} 16. Qc3 {[%clk 0:01:29.2]} 16...
Rad8 {[%clk 0:02:55.8]} 17. Rad1 {[%clk 0:01:22]} 17... Ne4 {[%clk 0:02:56.1]}
18. Qc1 {[%clk 0:01:20]} 18... a5 {[%clk 0:02:54.1]} 19. Rfe1 {[%clk 0:01:09]}
19... Bc5 {[%clk 0:02:53.1]} 20. Be3 {[%clk 0:01:06.7]} 20... Qb6 {[%clk
0:02:53.4]} 21. Bxc5 {[%clk 0:00:45]} 21... Qxc5 {[%clk 0:02:54.3]} 22. Qe3
{[%clk 0:00:44.8]} 22... Qxe3 {[%clk 0:02:53]} 23. fxe3 {[%clk 0:00:45.7]} 23...
a4 {[%clk 0:02:41.2]} 24. Nd4 {[%clk 0:00:45.2]} 24... Bg6 {[%clk 0:02:40.3]}
25. Bd3 {[%clk 0:00:41.6]} 25... Rd7 {[%clk 0:02:34.7]} 26. Bc2 {[%clk
0:00:41.1]} 26... Rfd8 {[%clk 0:02:28.4]} 27. Bxa4 {[%clk 0:00:36.5]} 27... Nc5
{[%clk 0:02:28.6]} 28. Nxc6 {[%clk 0:00:18.9]} 28... bxc6 {[%clk 0:02:25]} 29.
Rxd7 {[%clk 0:00:17]} 29... Rxd7 {[%clk 0:02:14.8]} 30. Bxc6 {[%clk 0:00:17.9]}
30... Rd2 {[%clk 0:02:14.9]} 31. b4 {[%clk 0:00:16]} 31... Nd3 {[%clk
0:02:14.8]} 32. Ra1 {[%clk 0:00:13.4]} 32... Nxe5 {[%clk 0:02:14.9]} 33. b5
{[%clk 0:00:09.6]} 33... Kf8 {[%clk 0:01:59.3]} 34. a4 {[%clk 0:00:08.8]} 34...
Ke7 {[%clk 0:01:58.2]} 35. Bb7 {[%clk 0:00:06.3]} 35... Rd7 {[%clk 0:01:46.3]}
36. a5 {[%clk 0:00:05.3]} 36... Rxb7 {[%clk 0:01:41.4]} 37. a6 {[%clk
0:00:05.4]} 37... Rd7 {[%clk 0:01:41.3]} 38. a7 {[%clk 0:00:04.5]} 38... Be4
{[%clk 0:01:41.3]} 39. c5 {[%clk 0:00:02.5]} 39... Rd2 {[%clk 0:01:04.2]} 0-1

[Event "*** Titled Tuesday Blitz"]
[Site "Chess.com"]
[Date "2020.03.03"]
[Round "5"]
[White "GianmarcoVaR"]
[Black "bascheyaro"]
[Result "0-1"]
[WhiteElo "2557"]
[BlackElo "2738"]
[TimeControl "180+1"]
[EndTime "13:51:37 PST"]
[Termination "bascheyaro won by checkmate"]

1. d4 {[%clk 0:03:00.9]} 1... d5 {[%clk 0:03:00]} 2. c4 {[%clk 0:03:00.2]} 2...
c6 {[%clk 0:03:00.3]} 3. Nf3 {[%clk 0:02:59.6]} 3... Nf6 {[%clk 0:03:00.7]} 4.
e3 {[%clk 0:03:00.2]} 4... Bf5 {[%clk 0:03:00.8]} 5. Nc3 {[%clk 0:02:59.6]} 5...
e6 {[%clk 0:03:01.1]} 6. Nh4 {[%clk 0:03:00.1]} 6... Be4 {[%clk 0:03:00.9]} 7.
f3 {[%clk 0:02:57.6]} 7... Bg6 {[%clk 0:03:01]} 8. Qb3 {[%clk 0:02:57.5]} 8...
Qb6 {[%clk 0:03:01.2]} 9. Nxg6 {[%clk 0:02:54.6]} 9... hxg6 {[%clk 0:03:01.2]}
10. g3 {[%clk 0:02:53.6]} 10... Nbd7 {[%clk 0:03:01.5]} 11. Bd2 {[%clk
0:02:51.9]} 11... Be7 {[%clk 0:03:00.2]} 12. Rc1 {[%clk 0:02:47.4]} 12... g5
{[%clk 0:02:56.5]} 13. Bd3 {[%clk 0:02:31]} 13... Qc7 {[%clk 0:02:46]} 14. cxd5
{[%clk 0:02:29.2]} 14... exd5 {[%clk 0:02:46]} 15. Nxd5 {[%clk 0:02:28.2]} 15...
Nxd5 {[%clk 0:02:46]} 16. Qxd5 {[%clk 0:02:28.4]} 16... Rxh2 {[%clk 0:02:46.2]}
17. Rg1 {[%clk 0:02:11.8]} 17... Rh1 {[%clk 0:02:43.7]} 18. Qxd7+ {[%clk
0:01:13.5]} 18... Kxd7 {[%clk 0:02:35.4]} 19. Rxh1 {[%clk 0:01:13.8]} 19...
Qxg3+ {[%clk 0:02:35.3]} 20. Kd1 {[%clk 0:01:14.4]} 20... Qxf3+ {[%clk
0:02:34.1]} 21. Kc2 {[%clk 0:01:14.9]} 21... Qd5 {[%clk 0:02:23.2]} 22. Rhf1
{[%clk 0:01:13.6]} 22... g6 {[%clk 0:02:16.9]} 23. b3 {[%clk 0:01:12.3]} 23...
f5 {[%clk 0:02:15.6]} 24. e4 {[%clk 0:01:08.8]} 24... fxe4 {[%clk 0:02:15]} 25.
Bc4 {[%clk 0:01:08.8]} 25... Qd6 {[%clk 0:02:03.6]} 26. Rf7 {[%clk 0:01:08.6]}
26... Rf8 {[%clk 0:02:00.6]} 27. Rxf8 {[%clk 0:00:57.2]} 27... Bxf8 {[%clk
0:02:01.5]} 28. Bxg5 {[%clk 0:00:57.3]} 28... Qg3 {[%clk 0:02:01.1]} 29. Bd2
{[%clk 0:00:51.9]} 29... Qg2 {[%clk 0:01:52.8]} 30. Re1 {[%clk 0:00:48.4]} 30...
Bh6 {[%clk 0:01:39.4]} 31. Re2 {[%clk 0:00:48.7]} 31... Qh1 {[%clk 0:01:39.7]}
32. Re1 {[%clk 0:00:38.9]} 32... Qh4 {[%clk 0:01:38.5]} 33. Bb4 {[%clk
0:00:28.3]} 33... e3 {[%clk 0:01:34.7]} 34. d5 {[%clk 0:00:25.9]} 34... cxd5
{[%clk 0:01:33.2]} 35. Bb5+ {[%clk 0:00:25.2]} 35... Ke6 {[%clk 0:01:33.5]} 36.
Bd2 {[%clk 0:00:23.8]} 36... a6 {[%clk 0:01:17.6]} 37. Bd3 {[%clk 0:00:20.3]}
37... Kd7 {[%clk 0:01:11.2]} 38. Bc3 {[%clk 0:00:07.3]} 38... Bg7 {[%clk
0:01:09.8]} 39. Ba5 {[%clk 0:00:04.9]} 39... b6 {[%clk 0:01:09]} 40. Rf1 {[%clk
0:00:02.9]} 40... bxa5 {[%clk 0:01:06.7]} 41. Rf7+ {[%clk 0:00:03.1]} 41... Ke6
{[%clk 0:01:05.6]} 42. Rf2 {[%clk 0:00:03.5]} 42... Qxf2+ {[%clk 0:01:04.6]} 43.
Be2 {[%clk 0:00:01.3]} 43... Qxe2+ {[%clk 0:01:04.7]} 44. Kb1 {[%clk 0:00:01.3]}
44... Qb2# {[%clk 0:01:04.5]} 0-1

[Event "*** Titled Tuesday Blitz"]
[Site "Chess.com"]
[Date "2020.03.03"]
[Round "5"]
[White "Hubbery"]
[Black "Chessalary"]
[Result "1/2-1/2"]
[WhiteElo "2551"]
[BlackElo "2294"]
[TimeControl "180+1"]
[EndTime "13:51:39 PST"]
[Termination "Game drawn by agreement"]

1. d4 {[%clk 0:02:57.4]} 1... e6 {[%clk 0:03:00.9]} 2. c4 {[%clk 0:02:57.4]}
2... c5 {[%clk 0:02:59.6]} 3. d5 {[%clk 0:02:57.6]} 3... exd5 {[%clk 0:02:59.5]}
4. cxd5 {[%clk 0:02:58.5]} 4... d6 {[%clk 0:03:00.4]} 5. Nc3 {[%clk 0:02:59.1]}
5... Nf6 {[%clk 0:02:54.2]} 6. e4 {[%clk 0:02:59.1]} 6... g6 {[%clk 0:02:55]} 7.
f4 {[%clk 0:02:58.8]} 7... Bg7 {[%clk 0:02:52.2]} 8. Bb5+ {[%clk 0:02:58.5]}
8... Nfd7 {[%clk 0:02:48]} 9. Bd3 {[%clk 0:02:56.8]} 9... O-O {[%clk 0:02:43.1]}
10. Nf3 {[%clk 0:02:56.1]} 10... a6 {[%clk 0:02:38.8]} 11. a4 {[%clk 0:02:55.6]}
11... Re8 {[%clk 0:02:33.8]} 12. O-O {[%clk 0:02:55.6]} 12... Nf6 {[%clk
0:02:25.1]} 13. f5 {[%clk 0:02:55.8]} 13... c4 {[%clk 0:02:17.5]} 14. Bc2 {[%clk
0:02:55.4]} 14... Nbd7 {[%clk 0:02:17.1]} 15. Bf4 {[%clk 0:02:52.5]} 15... Nh5
{[%clk 0:02:11.1]} 16. Be3 {[%clk 0:02:47.5]} 16... Ne5 {[%clk 0:02:11.6]} 17.
Nxe5 {[%clk 0:02:47.5]} 17... Bxe5 {[%clk 0:02:09.6]} 18. Bd4 {[%clk 0:02:40.6]}
18... Qg5 {[%clk 0:02:05.3]} 19. Bxe5 {[%clk 0:02:05.8]} 19... Rxe5 {[%clk
0:02:06.2]} 20. Qc1 {[%clk 0:01:52.8]} 20... Qg4 {[%clk 0:01:53]} 21. Bd1 {[%clk
0:01:48.3]} 21... Qh4 {[%clk 0:01:48.4]} 22. Bxh5 {[%clk 0:01:47.9]} 22... Qxh5
{[%clk 0:01:43.6]} 23. fxg6 {[%clk 0:01:44.6]} 23... Qxg6 {[%clk 0:01:36.5]} 24.
Qf4 {[%clk 0:01:37.4]} 24... Rg5 {[%clk 0:01:36.9]} 25. Rf2 {[%clk 0:01:36.4]}
25... Bh3 {[%clk 0:01:31.2]} 26. g3 {[%clk 0:01:28.8]} 26... Re8 {[%clk
0:01:24.7]} 27. a5 {[%clk 0:01:24.9]} 27... f5 {[%clk 0:01:19.7]} 28. Re1 {[%clk
0:01:12.5]} 28... Rg4 {[%clk 0:01:12]} 29. Qf3 {[%clk 0:01:08.9]} 29... f4
{[%clk 0:01:07.6]} 30. Kh1 {[%clk 0:00:36.3]} 30... fxg3 {[%clk 0:00:55.7]} 31.
hxg3 {[%clk 0:00:37.2]} 31... Rxg3 {[%clk 0:00:56.6]} 32. Qxg3 {[%clk
0:00:32.4]} 32... Qxg3 {[%clk 0:00:57.5]} 33. Rg1 {[%clk 0:00:33.2]} 33... Qxg1+
{[%clk 0:00:46.8]} 34. Kxg1 {[%clk 0:00:34.1]} 34... Kg7 {[%clk 0:00:47.7]} 35.
Kh2 {[%clk 0:00:31.4]} 35... Bg4 {[%clk 0:00:41.2]} 1/2-1/2

[Event "*** Titled Tuesday Blitz"]
[Site "Chess.com"]
[Date "2020.03.03"]
[Round "5"]
[White "TigrVShlyape"]
[Black "BeanScreen"]
[Result "1-0"]
[WhiteElo "2890"]
[BlackElo "2649"]
[TimeControl "180+1"]
[EndTime "13:51:41 PST"]
[Termination "TigrVShlyape won by resignation"]

1. d4 {[%clk 0:03:00.3]} 1... d5 {[%clk 0:02:59.8]} 2. Nf3 {[%clk 0:03:00.1]}
2... Nf6 {[%clk 0:03:00.5]} 3. Bf4 {[%clk 0:03:00.6]} 3... c5 {[%clk 0:03:00.4]}
4. e3 {[%clk 0:03:00.5]} 4... Nc6 {[%clk 0:03:00]} 5. Nbd2 {[%clk 0:03:00.3]}
5... e6 {[%clk 0:03:00.3]} 6. c3 {[%clk 0:02:59.3]} 6... Bd6 {[%clk 0:03:00.7]}
7. Bg3 {[%clk 0:02:59.3]} 7... Bxg3 {[%clk 0:03:01.4]} 8. hxg3 {[%clk
0:02:59.1]} 8... Qd6 {[%clk 0:03:02]} 9. Bb5 {[%clk 0:02:58.3]} 9... Bd7 {[%clk
0:03:02.4]} 10. Bxc6 {[%clk 0:02:57.9]} 10... bxc6 {[%clk 0:03:02.5]} 11. Qa4
{[%clk 0:02:52.9]} 11... cxd4 {[%clk 0:02:55.2]} 12. cxd4 {[%clk 0:02:52.3]}
12... c5 {[%clk 0:02:54.5]} 13. Qa3 {[%clk 0:02:52.1]} 13... O-O {[%clk
0:02:35.2]} 14. Rc1 {[%clk 0:02:44.3]} 14... Rfc8 {[%clk 0:02:34.1]} 15. dxc5
{[%clk 0:02:42.7]} 15... Qc7 {[%clk 0:02:31.2]} 16. Qc3 {[%clk 0:02:39.6]} 16...
a5 {[%clk 0:02:28.5]} 17. b3 {[%clk 0:02:38.1]} 17... Rab8 {[%clk 0:02:26.7]}
18. O-O {[%clk 0:02:28]} 18... Rb5 {[%clk 0:02:26.3]} 19. c6 {[%clk 0:02:27.8]}
19... Be8 {[%clk 0:02:24.3]} 20. Ne5 {[%clk 0:02:20.1]} 20... Rb6 {[%clk
0:02:10.4]} 21. Rc2 {[%clk 0:02:12.6]} 21... Rb4 {[%clk 0:01:32.4]} 22. Rfc1
{[%clk 0:02:10.3]} 22... Ne4 {[%clk 0:01:31.8]} 23. Nxe4 {[%clk 0:02:07.4]}
23... Rxe4 {[%clk 0:01:32.7]} 24. Nf3 {[%clk 0:02:00.7]} 24... Rb4 {[%clk
0:01:19.6]} 25. Qc5 {[%clk 0:01:52.5]} 25... h6 {[%clk 0:01:00.5]} 26. Nd4
{[%clk 0:01:50.5]} 26... Rcb8 {[%clk 0:00:52.2]} 27. a3 {[%clk 0:01:49]} 27...
R4b6 {[%clk 0:00:46.7]} 28. Qxa5 {[%clk 0:01:49]} 28... e5 {[%clk 0:00:46.8]}
29. Nb5 {[%clk 0:01:48.3]} 29... Qc8 {[%clk 0:00:43]} 30. c7 {[%clk 0:01:41.8]}
30... Rxb5 {[%clk 0:00:24.4]} 31. cxb8=Q {[%clk 0:01:40.5]} 31... Qxb8 {[%clk
0:00:24.2]} 32. Qc7 {[%clk 0:01:40]} 32... Qxc7 {[%clk 0:00:17.6]} 33. Rxc7
{[%clk 0:01:38.7]} 33... Rxb3 {[%clk 0:00:18.5]} 34. Re7 {[%clk 0:01:33.5]}
34... Kf8 {[%clk 0:00:18.9]} 35. Rxe5 {[%clk 0:01:33]} 35... f6 {[%clk
0:00:14.8]} 36. Rxd5 {[%clk 0:01:32.5]} 36... Rxa3 {[%clk 0:00:15]} 37. Rc7
{[%clk 0:01:31.1]} 37... Ra1+ {[%clk 0:00:11.4]} 38. Kh2 {[%clk 0:01:30.6]}
38... Ra2 {[%clk 0:00:11.6]} 39. Rd8 {[%clk 0:01:30]} 39... Ra5 {[%clk
0:00:09.5]} 40. g4 {[%clk 0:01:29.2]} 40... Re5 {[%clk 0:00:09.5]} 41. Kg3
{[%clk 0:01:28.9]} 41... h5 {[%clk 0:00:09.4]} 42. gxh5 {[%clk 0:01:28.1]} 42...
Rxh5 {[%clk 0:00:09.8]} 43. f4 {[%clk 0:01:26.1]} 43... Rh8 {[%clk 0:00:06.6]}
44. e4 {[%clk 0:01:24.5]} 44... Rg8 {[%clk 0:00:05.8]} 45. Kf3 {[%clk
0:01:23.1]} 45... g5 {[%clk 0:00:05.8]} 46. f5 {[%clk 0:01:22.6]} 46... g4+
{[%clk 0:00:05.7]} 47. Kg3 {[%clk 0:01:22.2]} 47... Rh8 {[%clk 0:00:05.4]} 48.
Rxe8+ {[%clk 0:01:21.5]} 1-0

[Event "*** Titled Tuesday Blitz"]
[Site "Chess.com"]
[Date "2020.03.03"]
[Round "5"]
[White "enzovsky"]
[Black "IngOscarArdila"]
[Result "0-1"]
[WhiteElo "2313"]
[BlackElo "2135"]
[TimeControl "180+1"]
[EndTime "13:51:46 PST"]
[Termination "IngOscarArdila won by resignation"]

1. Nf3 {[%clk 0:03:00.9]} 1... Nf6 {[%clk 0:02:59]} 2. c4 {[%clk 0:03:00.6]}
2... g6 {[%clk 0:02:59.1]} 3. Nc3 {[%clk 0:03:00]} 3... Bg7 {[%clk 0:02:59.6]}
4. e4 {[%clk 0:02:59.8]} 4... d6 {[%clk 0:02:59.8]} 5. d4 {[%clk 0:02:59.4]}
5... O-O {[%clk 0:02:59.6]} 6. h3 {[%clk 0:02:59.4]} 6... e5 {[%clk 0:02:59.7]}
7. Be2 {[%clk 0:02:57.1]} 7... exd4 {[%clk 0:02:59.1]} 8. Nxd4 {[%clk 0:02:57]}
8... Re8 {[%clk 0:02:59.7]} 9. f3 {[%clk 0:02:52]} 9... Nbd7 {[%clk 0:02:59.6]}
10. O-O {[%clk 0:02:52]} 10... Nc5 {[%clk 0:02:57.3]} 11. Be3 {[%clk 0:02:50.2]}
11... Ne6 {[%clk 0:02:57.2]} 12. Bf2 {[%clk 0:02:46.4]} 12... Nh5 {[%clk
0:02:55.5]} 13. Re1 {[%clk 0:02:40.2]} 13... Nhf4 {[%clk 0:02:54.3]} 14. Bf1
{[%clk 0:02:39.4]} 14... Qg5 {[%clk 0:02:53.5]} 15. Kh2 {[%clk 0:02:29.9]} 15...
Be5 {[%clk 0:02:31.9]} 16. g3 {[%clk 0:02:25.2]} 16... Nh5 {[%clk 0:02:31.5]}
17. Nde2 {[%clk 0:02:13.4]} 17... f5 {[%clk 0:01:41.9]} 18. Nd5 {[%clk
0:01:59.5]} 18... fxe4 {[%clk 0:01:36.6]} 19. f4 {[%clk 0:01:57.3]} 19... Nhxf4
{[%clk 0:01:34.7]} 20. gxf4 {[%clk 0:01:52.9]} 20... Nxf4 {[%clk 0:01:34.9]} 21.
Nexf4 {[%clk 0:01:52.3]} 21... c6 {[%clk 0:01:30.1]} 22. h4 {[%clk 0:01:33.8]}
22... Qh6 {[%clk 0:01:14.1]} 23. Bg3 {[%clk 0:01:25.8]} 23... cxd5 {[%clk
0:01:11.8]} 24. Qxd5+ {[%clk 0:01:26.7]} 24... Be6 {[%clk 0:00:54.4]} 25. Qxe4
{[%clk 0:01:11.4]} 25... Bf5 {[%clk 0:00:45.5]} 26. Qd5+ {[%clk 0:01:07.4]}
26... Kh8 {[%clk 0:00:45.8]} 27. Ng2 {[%clk 0:00:54.4]} 27... Be6 {[%clk
0:00:42.4]} 28. Bxe5+ {[%clk 0:00:50.9]} 28... dxe5 {[%clk 0:00:42.6]} 29. Qxe5+
{[%clk 0:00:51.8]} 29... Kg8 {[%clk 0:00:42.7]} 30. Qg5 {[%clk 0:00:49.6]} 30...
Qg7 {[%clk 0:00:42.1]} 31. Nf4 {[%clk 0:00:45.5]} 31... Bf5 {[%clk 0:00:41]} 32.
Bg2 {[%clk 0:00:44]} 32... Qxb2 {[%clk 0:00:40.7]} 33. Kh1 {[%clk 0:00:32.3]}
33... Rac8 {[%clk 0:00:30.8]} 34. Bd5+ {[%clk 0:00:31.2]} 34... Kh8 {[%clk
0:00:27.7]} 35. Qf6+ {[%clk 0:00:30.8]} 35... Qxf6 {[%clk 0:00:27.3]} 0-1

[Event "*** Titled Tuesday Blitz"]
[Site "Chess.com"]
[Date "2020.03.03"]
[Round "5"]
[White "newauto"]
[Black "Mbneu"]
[Result "1-0"]
[WhiteElo "2020"]
[BlackElo "2204"]
[TimeControl "180+1"]
[EndTime "13:51:48 PST"]
[Termination "newauto won by resignation"]

1. e4 {[%clk 0:03:00.1]} 1... c5 {[%clk 0:02:58.5]} 2. Nf3 {[%clk 0:02:59.5]}
2... Nf6 {[%clk 0:02:56.2]} 3. e5 {[%clk 0:02:59.1]} 3... Nd5 {[%clk 0:02:56]}
4. c3 {[%clk 0:02:56.4]} 4... d6 {[%clk 0:02:53.9]} 5. exd6 {[%clk 0:02:54.8]}
5... e6 {[%clk 0:02:53.1]} 6. d4 {[%clk 0:02:55.7]} 6... cxd4 {[%clk 0:02:51.1]}
7. Nxd4 {[%clk 0:02:46.5]} 7... Bxd6 {[%clk 0:02:50.8]} 8. Be2 {[%clk
0:02:43.5]} 8... O-O {[%clk 0:02:49]} 9. O-O {[%clk 0:02:42.5]} 9... b6 {[%clk
0:02:45.7]} 10. Bf3 {[%clk 0:02:37.3]} 10... Ba6 {[%clk 0:02:39.8]} 11. Re1
{[%clk 0:02:34.9]} 11... Nd7 {[%clk 0:02:32.2]} 12. Nd2 {[%clk 0:02:19.7]} 12...
Ne5 {[%clk 0:01:58.3]} 13. Rxe5 {[%clk 0:02:07.3]} 13... Bxe5 {[%clk 0:01:56.4]}
14. Nc6 {[%clk 0:02:06]} 14... Bxh2+ {[%clk 0:01:50.4]} 15. Kxh2 {[%clk
0:02:04]} 15... Qd6+ {[%clk 0:01:47.9]} 16. Kg1 {[%clk 0:01:58.4]} 16... Qxc6
{[%clk 0:01:47.9]} 17. Qb3 {[%clk 0:01:51.9]} 17... Qd7 {[%clk 0:01:14.6]} 18.
c4 {[%clk 0:01:51.2]} 18... Nf4 {[%clk 0:01:13.1]} 19. Bxa8 {[%clk 0:01:48.5]}
19... Rxa8 {[%clk 0:01:13.9]} 20. Nf3 {[%clk 0:01:44.5]} 20... Ne2+ {[%clk
0:01:06.6]} 21. Kf1 {[%clk 0:01:36.7]} 21... Nxc1 {[%clk 0:01:06]} 22. Rxc1
{[%clk 0:01:36]} 22... Rc8 {[%clk 0:01:06.5]} 23. Kg1 {[%clk 0:01:23.6]} 23...
h6 {[%clk 0:01:05]} 24. Ne5 {[%clk 0:01:11.6]} 24... Qd4 {[%clk 0:01:01.4]} 25.
Re1 {[%clk 0:01:02.8]} 25... Bxc4 {[%clk 0:00:57.5]} 26. Qf3 {[%clk 0:00:56.4]}
26... f6 {[%clk 0:00:50.3]} 27. Qb7 {[%clk 0:00:51.2]} 27... Rf8 {[%clk
0:00:44.2]} 28. Nxc4 {[%clk 0:00:15.9]} 28... Qxc4 {[%clk 0:00:45.1]} 29. Qxa7
{[%clk 0:00:13.4]} 29... b5 {[%clk 0:00:43]} 30. Rd1 {[%clk 0:00:12.3]} 30...
Rc8 {[%clk 0:00:27.4]} 31. Rd7 {[%clk 0:00:11.3]} 31... Qc1+ {[%clk 0:00:26.3]}
32. Kh2 {[%clk 0:00:11]} 32... Qf4+ {[%clk 0:00:26.4]} 33. g3 {[%clk 0:00:10.6]}
33... Qxf2+ {[%clk 0:00:25.6]} 34. Qxf2 {[%clk 0:00:09.8]} 1-0

[Event "*** Titled Tuesday Blitz"]
[Site "Chess.com"]
[Date "2020.03.03"]
[Round "5"]
[White "aa175"]
[Black "diskeleven"]
[Result "1-0"]
[WhiteElo "2262"]
[BlackElo "2353"]
[TimeControl "180+1"]
[EndTime "13:51:49 PST"]
[Termination "aa175 won by resignation"]

1. d4 {[%clk 0:03:00.9]} 1... f5 {[%clk 0:02:59]} 2. c4 {[%clk 0:02:59.3]} 2...
e6 {[%clk 0:02:59.2]} 3. Nc3 {[%clk 0:02:58.9]} 3... Nf6 {[%clk 0:02:59.7]} 4.
Nf3 {[%clk 0:02:47.3]} 4... Bb4 {[%clk 0:02:58.6]} 5. e3 {[%clk 0:02:44.4]} 5...
O-O {[%clk 0:02:58.5]} 6. Bd3 {[%clk 0:02:44.2]} 6... b6 {[%clk 0:02:55.8]} 7.
Qc2 {[%clk 0:02:40.9]} 7... Bb7 {[%clk 0:02:43.1]} 8. a3 {[%clk 0:02:37.3]} 8...
Bxc3+ {[%clk 0:02:40]} 9. bxc3 {[%clk 0:02:38.2]} 9... Be4 {[%clk 0:02:36.9]}
10. Bxe4 {[%clk 0:02:36.3]} 10... Nxe4 {[%clk 0:02:35.1]} 11. Nd2 {[%clk
0:02:35.1]} 11... Qh4 {[%clk 0:02:27.6]} 12. Nxe4 {[%clk 0:02:34]} 12... fxe4
{[%clk 0:02:27.7]} 13. O-O {[%clk 0:02:33.8]} 13... Nc6 {[%clk 0:02:18.6]} 14.
Bd2 {[%clk 0:02:11]} 14... Rf6 {[%clk 0:02:09.1]} 15. f3 {[%clk 0:01:59]} 15...
exf3 {[%clk 0:01:55.9]} 16. Rxf3 {[%clk 0:01:53.8]} 16... Rxf3 {[%clk
0:01:55.4]} 17. gxf3 {[%clk 0:01:54.7]} 17... Rf8 {[%clk 0:01:53]} 18. Rf1
{[%clk 0:01:48.1]} 18... Qh3 {[%clk 0:01:34.4]} 19. Qe4 {[%clk 0:01:29.6]} 19...
Rf6 {[%clk 0:01:34.3]} 20. f4 {[%clk 0:01:13.3]} 20... Rg6+ {[%clk 0:01:26.6]}
21. Kf2 {[%clk 0:01:12]} 21... Qxh2+ {[%clk 0:01:25.1]} 22. Ke1 {[%clk
0:01:11.2]} 22... Rg2 {[%clk 0:01:23.4]} 23. Qd3 {[%clk 0:01:04]} 23... Na5
{[%clk 0:01:16.3]} 24. f5 {[%clk 0:00:57.9]} 24... Nxc4 {[%clk 0:01:09.2]} 25.
Qxc4 {[%clk 0:00:41.4]} 25... Rxd2 {[%clk 0:00:41.4]} 26. fxe6 {[%clk 0:00:41]}
26... d5 {[%clk 0:00:15.1]} 27. e7 {[%clk 0:00:14.5]} 27... h6 {[%clk 0:00:15]}
28. Qxd5+ {[%clk 0:00:11.7]} 28... Kh7 {[%clk 0:00:14.9]} 29. Qf5+ {[%clk
0:00:11.7]} 29... g6 {[%clk 0:00:14.5]} 30. Qf7+ {[%clk 0:00:10.6]} 1-0